bitfinex/quotes_SOLUSD_20260309
["timestamp","ask_amount","ask_price","bid_price","bid_amount"]
[1773030528294,11.75145987,83.71,83.682,3.18697195]
[1773030528802,11.94614677,83.709,83.684,3.18697195]
[1773030530995,14.45313971,83.709,83.684,3.18697195]
[1773030531395,2.50699294,83.708,83.684,3.18697195]
[1773030533008,11.94643219,83.707,83.684,3.18697195]
[1773030534396,11.94643219,83.707,83.685,3.18697195]
[1773030535010,2.5034486,83.706,83.678,3.18697195]
[1773030536200,11.94643219,83.707,83.678,3.18697195]
[1773030536999,14.44820787,83.707,83.679,11.95042961]
[1773030537195,14.44820787,83.707,83.68,3.18697195]
[1773030537990,2.50095869,83.731,83.681,3.18697195]
[1773030538298,11.75145987,83.72,83.691,3.18697195]
[1773030538501,2.50095869,83.719,83.691,3.18697195]
[1773030539002,11.75145987,83.73,83.692,41.82000669]
[1773030539195,11.94329324,83.729,83.693,3.18697195]
[1773030539400,11.75145987,83.73,83.693,3.18697195]
[1773030539600,23.69468812,83.73,83.693,3.18697195]
[1773030539786,26.19478345,83.73,83.693,3.18697195]
[1773030539987,2.4993012,83.729,83.693,3.18697195]
[1773030541205,2.49851399,83.748,83.711,3.18697195]
[1773030541507,23.69178828,83.75,83.713,3.18697195]
[1773030541892,3.11219158,83.749,83.713,3.18697195]
[1773030542292,11.94058365,83.748,83.715,3.18697195]
[1773030543102,3.2875078,83.747,83.715,3.18697195]
[1773030544310,4.3831811,83.74,83.716,11.94514788]
[1773030544509,4.3831811,83.74,83.717,3.01859166]
[1773030545207,3.2875078,83.742,83.717,3.01859166]
[1773030545407,4.3831811,83.74,83.717,3.01859166]
[1773030545595,3.2875078,83.739,83.717,3.01859166]
[1773030546410,3.2875078,83.737,83.702,3.01859166]
[1773030546590,4.3831811,83.74,83.702,3.01859166]
[1773030547288,7.6706889,83.74,83.702,3.01859166]
[1773030547709,7.6706889,83.74,83.711,3.01859166]
[1773030548300,3.22113339,83.739,83.711,3.01859166]
[1773030549117,4.3831811,83.76,83.71,4.3831811]
[1773030549118,3.22113339,83.746,83.713,3.3006983]
[1773030549294,15.15986382,83.761,83.721,3.3006983]
[1773030549492,11.93816377,83.765,83.73,4.3831811]
[1773030549693,15.15929716,83.765,83.731,3.3006983]
[1773030550295,3.22113339,83.764,83.731,3.3006983]
[1773030550592,7.60431449,83.77,83.731,3.3006983]
[1773030550810,3.22113339,83.779,83.741,3.3006983]
[1773030550992,15.15729877,83.779,83.743,3.3006983]
[1773030551188,15.15729877,83.779,83.751,3.3006983]
[1773030551509,3.22113339,83.778,83.751,3.3006983]
[1773030552092,0.3573009,83.78,83.751,3.3006983]
[1773030552729,0.3573009,83.78,83.748,3.3006983]
[1773030553036,0.3573009,83.78,83.753,3.3006983]
[1773030553231,3.22113339,83.779,83.747,11.94063065]
[1773030553526,3.22113339,83.779,83.748,3.3006983]
[1773030553722,3.22113339,83.779,83.751,3.3006983]
[1773030554822,3.22113339,83.778,83.753,3.3006983]
[1773030555599,3.22113339,83.778,83.752,11.94001337]
[1773030556423,3.22113339,83.778,83.748,3.3006983]
[1773030557001,3.22113339,83.776,83.75,3.3006983]
[1773030557624,3.22113339,83.776,83.751,3.3006983]
[1773030558204,3.22113339,83.769,83.741,3.3006983]
[1773030558713,3.22113339,83.776,83.741,3.3006983]
[1773030559108,3.22113339,83.776,83.743,3.3006983]
[1773030559618,3.22113339,83.774,83.743,3.3006983]
[1773030560423,3.22113339,83.769,83.734,3.3006983]
[1773030561021,11.93773278,83.768,83.734,3.3006983]
[1773030561330,3.22113339,83.767,83.734,3.3006983]
[1773030561532,3.22113339,83.759,83.735,3.3006983]
[1773030562915,11.93915805,83.758,83.735,3.3006983]
[1773030563221,15.16029144,83.758,83.735,3.3006983]
[1773030563428,3.22113339,83.757,83.735,3.3006983]
[1773030563610,3.22113339,83.757,83.737,3.3006983]
[1773030563810,11.93860656,83.762,83.737,3.3006983]
[1773030564224,3.22113339,83.761,83.737,3.3006983]
[1773030565428,3.22113339,83.759,83.737,3.3006983]
[1773030566323,3.22113339,83.759,83.731,3.3006983]
[1773030566711,3.22113339,83.759,83.732,3.3006983]
[1773030567926,3.22113339,83.757,83.734,3.3006983]
[1773030568504,3.22113339,83.757,83.73,7.6838794]
[1773030568706,3.22113339,83.757,83.732,3.3006983]
[1773030569125,3.22113339,83.757,83.725,11.94386212]
[1773030569318,3.22113339,83.757,83.726,3.3006983]
[1773030569831,3.22113339,83.757,83.725,11.94386212]
[1773030569832,3.22113339,83.749,83.725,11.94386212]
[1773030570212,3.22113339,83.749,83.725,15.24456042]
[1773030570535,3.22113339,83.749,83.726,3.3006983]
[1773030570829,11.94058365,83.748,83.726,3.3006983]
[1773030571016,3.22113339,83.747,83.726,3.3006983]
[1773030571217,3.22113339,83.759,83.731,3.3006983]
[1773030571931,3.22113339,83.757,83.731,3.3006983]
[1773030572911,3.22113339,83.757,83.733,3.05758688]
[1773030573113,11.9393535,83.757,83.733,3.05758688]
[1773030573331,3.27028639,83.756,83.733,3.05758688]
[1773030574935,3.27028639,83.762,83.735,3.05758688]
[1773030576011,3.27028639,83.759,83.735,3.05758688]
[1773030577432,3.27028639,83.757,83.735,3.05758688]
[1773030577732,3.27028639,83.757,83.731,3.05758688]
[1773030579434,3.27028639,83.757,83.732,3.05758688]
[1773030580018,3.27028639,83.755,83.732,3.05758688]
[1773030580217,3.27028639,83.755,83.727,11.94357799]
[1773030580418,3.27028639,83.755,83.728,3.05758688]
[1773030581333,29.84789512,83.758,83.728,3.05758688]
[1773030581334,3.27028639,83.753,83.728,3.05758688]
[1773030581542,3.27028639,83.749,83.727,11.94357799]
[1773030581920,11.93972825,83.754,83.731,3.05758688]
[1773030582422,3.27028639,83.753,83.731,3.05758688]
[1773030583441,3.27028639,83.751,83.731,3.05758688]
[1773030584536,3.27028639,83.751,83.732,11.94286533]
[1773030585034,3.27028639,83.763,83.741,3.05758688]
[1773030585228,3.27028639,83.761,83.733,3.05758688]
[1773030585431,3.27028639,83.759,83.733,3.05758688]
[1773030586243,3.27028639,83.759,83.716,3.05758688]
[1773030586438,3.27028639,83.759,83.721,3.05758688]
[1773030587742,3.27028639,83.757,83.723,3.05758688]
[1773030588254,3.27028639,83.749,83.718,3.05758688]
[1773030589052,3.27028639,83.749,83.721,3.05758688]
[1773030590849,11.94058365,83.748,83.722,3.05758688]
[1773030591153,3.27028639,83.747,83.722,3.05758688]
[1773030592750,3.27028639,83.747,83.716,3.05758688]
[1773030593062,3.27028639,83.745,83.717,3.05758688]
[1773030594841,3.27028639,83.743,83.718,11.94486251]
[1773030595049,3.27028639,83.743,83.719,3.05758688]
[1773030596254,15.21172557,83.742,83.721,3.05758688]
[1773030596634,3.27028639,83.741,83.721,3.05758688]
[1773030600159,11.94172438,83.74,83.712,3.05758688]
[1773030600463,11.94172438,83.74,83.664,34.2]
[1773030600464,3.27028639,83.729,83.701,3.05758688]
[1773030601653,3.27028639,83.729,83.696,3.05758688]
[1773030601875,4.38193738,83.72,83.686,3.05758688]
[1773030602038,3.27028639,83.735,83.701,3.05758688]
[1773030602554,3.27028639,83.729,83.703,3.05758688]
[1773030602760,3.27028639,83.729,83.692,3.05758688]
[1773030603855,3.27748907,83.719,83.692,3.05758688]
[1773030604159,3.27748907,83.719,83.686,3.30545747]
[1773030604460,3.27748907,83.709,83.68,3.30545747]
[1773030604647,3.27748907,83.709,83.673,3.30545747]
[1773030605452,3.27748907,83.699,83.673,3.30545747]
[1773030605963,3.27748907,83.697,83.673,3.30545747]
[1773030606462,3.27748907,83.697,83.675,3.30545747]
[1773030607042,3.27748907,83.697,83.67,11.95171507]
[1773030607565,3.27748907,83.697,83.67,15.25717254]
[1773030608257,11.94800229,83.696,83.67,15.25717254]
[1773030608465,3.27748907,83.695,83.67,15.25717254]
[1773030609162,3.27748907,83.695,83.671,3.20890799]
[1773030610550,3.27748907,83.695,83.673,3.20890799]
[1773030611045,3.08574637,83.693,83.667,3.20890799]
[1773030611246,3.08574637,83.693,83.67,4.38193738]
[1773030611446,3.08574637,83.693,83.67,7.59084537]
[1773030612640,4.38193738,83.68,83.658,11.9534114]
[1773030612844,3.08574637,83.679,83.658,11.9534114]
[1773030613343,3.08574637,83.679,83.654,3.20890799]
[1773030613540,3.08574637,83.679,83.656,3.20890799]
[1773030614648,3.08574637,83.679,83.651,15.1633377]
[1773030614847,3.08574637,83.679,83.652,3.20890799]
[1773030615263,3.08574637,83.677,83.652,3.20890799]
[1773030616051,3.08574637,83.677,83.651,11.95442971]
[1773030616361,3.08574637,83.677,83.646,15.16391655]
[1773030617052,11.95085807,83.676,83.646,15.16391655]
[1773030617247,3.08574637,83.679,83.651,3.20890799]
[1773030617461,4.38193738,83.66,83.64,0.2]
[1773030617760,3.08574637,83.659,83.64,0.2]
[1773030618866,3.08574637,83.669,83.642,3.20890799]
[1773030619648,3.08574637,83.669,83.643,11.95557309]
[1773030619969,3.08574637,83.669,83.644,3.20890799]
[1773030620666,4.38193738,83.7,83.661,3.20890799]
[1773030620970,41.80951583,83.713,83.643,43.04006311]
[1773030620971,4.38193738,83.71,83.671,3.20890799]
[1773030621149,4.38193738,83.7,83.671,3.20890799]
[1773030621751,11.94757404,83.699,83.672,11.95142939]
[1773030621970,11.94757404,83.699,83.673,3.20890799]
[1773030622568,3.08574637,83.698,83.673,3.20890799]
[1773030623972,11.94785954,83.697,83.673,3.20890799]
[1773030624159,15.03360591,83.697,83.673,3.20890799]
[1773030624468,3.08574637,83.696,83.673,3.20890799]
[1773030625253,3.08574637,83.696,83.664,11.89174356]
[1773030627156,3.08574637,83.694,83.667,3.20890799]
[1773030627361,3.08574637,83.694,83.643,59.77786545]
[1773030627362,4.38193738,83.68,83.642,3.20890799]
[1773030627561,3.08574637,83.679,83.642,3.20890799]
[1773030627768,4.38193738,83.68,83.64,0.2]
[1773030627769,4.38193738,83.66,83.64,0.2]
[1773030628082,3.08574637,83.659,83.64,0.2]
[1773030628460,3.08574637,83.659,83.63,0.2]
[1773030628461,3.08574637,83.649,83.63,0.2]
[1773030629971,4.38193738,83.65,83.63,0.2]
[1773030629972,3.08574637,83.647,83.63,0.2]
[1773030631078,3.08574637,83.639,83.63,0.2]
[1773030631878,3.08574637,83.647,83.63,1e-08]
[1773030632275,3.08574637,83.639,83.63,1e-08]
[1773030632580,3.08574637,83.639,83.62,0.2]
[1773030632581,3.08574637,83.629,83.62,1e-08]
[1773030632753,3.08574637,83.629,83.604,43.8175341]
[1773030633274,3.08574637,83.629,83.604,3.20890799]
[1773030633579,16.33938198,83.63,83.601,3.01552064]
[1773030633760,11.95672016,83.635,83.601,3.01552064]
[1773030633961,11.955188,83.646,83.611,3.01552064]
[1773030634162,3.03440777,83.664,83.631,3.01552064]
[1773030634679,3.03440777,83.662,83.631,3.01552064]
[1773030635582,3.03440777,83.637,83.603,3.01552064]
[1773030636581,4.38193738,83.64,83.611,3.01552064]
[1773030637086,14.99004841,83.643,83.611,3.01552064]
[1773030637384,3.03440777,83.642,83.611,3.01552064]
[1773030638684,4.38193738,83.64,83.613,3.01552064]
[1773030639178,7.41634515,83.64,83.613,3.01552064]
[1773030640059,3.03440777,83.639,83.612,11.96000574]
[1773030640265,3.03440777,83.619,83.596,3.01552064]
[1773030640781,3.03440777,83.618,83.596,3.01552064]
[1773030641481,4.38193738,83.61,83.586,14.97914168]
[1773030641683,3.03440777,83.609,83.586,14.97914168]
[1773030642186,3.03440777,83.599,83.576,14.98057543]
[1773030642564,3.03440777,83.599,83.576,3.01552064]
[1773030642970,3.03440777,83.599,83.58,11.96458404]
[1773030643888,3.03440777,83.599,83.576,3.01552064]
[1773030644069,3.03440777,83.599,83.578,3.01552064]
[1773030644379,3.03440777,83.589,83.57,0.2]
[1773030644969,3.03440777,83.589,83.571,11.96587332]
[1773030645476,3.03440777,83.589,83.57,3.21552064]
[1773030645785,3.03440777,83.599,83.571,3.01552064]
[1773030647184,3.03440777,83.625,83.59,4.38193738]
[1773030647386,47.77602038,83.725,83.572,11.96573014]
[1773030647387,3.03440777,83.645,83.61,4.38193738]
[1773030647566,3.03440777,83.645,83.611,3.01552064]
[1773030649283,3.03440777,83.643,83.613,3.01552064]
[1773030652569,3.03440777,83.629,83.6,4.39299329]
[1773030652775,3.03440777,83.629,83.601,3.01552064]
[1773030654792,3.03440777,83.629,83.602,11.96143632]
[1773030655188,3.03440777,83.629,83.603,3.01552064]
[1773030655784,3.03440777,83.627,83.603,3.01552064]
[1773030656197,3.03440777,83.632,83.603,3.01552064]
[1773030657295,3.03440777,83.632,83.605,3.01552064]
[1773030657493,3.03440777,83.631,83.605,3.01552064]
[1773030659780,3.03440777,83.638,83.611,3.01552064]
[1773030660488,11.95586027,83.641,83.611,3.01552064]
[1773030661200,11.95586027,83.641,83.606,41.86302418]
[1773030661201,14.98855219,83.653,83.621,3.01552064]
[1773030661384,3.03440777,83.652,83.621,3.01552064]
[1773030662100,3.03440777,83.669,83.631,3.01552064]
[1773030662306,14.98626568,83.669,83.641,3.01552064]
[1773030662499,11.95185791,83.669,83.641,3.01552064]
[1773030664098,3.08371447,83.669,83.641,3.01552064]
[1773030664283,3.08371447,83.669,83.637,3.08654308]
[1773030664705,3.08371447,83.669,83.635,11.95658763]
[1773030665197,11.95200076,83.668,83.636,3.08654308]
[1773030665405,3.08371447,83.667,83.636,3.08654308]
[1773030666188,3.08371447,83.667,83.64,7.47953637]
[1773030666603,3.08371447,83.667,83.632,3.08654308]
[1773030666809,3.08371447,83.667,83.641,3.08654308]
[1773030666984,3.08371447,83.667,83.63,41.85096666]
[1773030666985,3.08371447,83.667,83.634,3.08654308]
[1773030667399,3.08371447,83.665,83.635,11.95671668]
[1773030667801,3.08371447,83.665,83.636,3.08654308]
[1773030668911,41.83300265,83.666,83.636,3.08654308]
[1773030668912,3.16491478,83.659,83.636,3.08654308]
[1773030669088,3.16491478,83.669,83.641,3.19520201]
[1773030670212,3.16491478,83.668,83.635,15.15191869]
[1773030670507,3.16491478,83.659,83.62,4.39299329]
[1773030670698,3.16491478,83.649,83.62,3.19520201]
[1773030670898,3.16491478,83.649,83.622,3.19520201]
[1773030671295,3.16491478,83.649,83.615,3.19520201]
[1773030671502,3.16491478,83.639,83.61,4.39299329]
[1773030671701,3.16491478,83.639,83.612,3.19520201]
[1773030672304,3.16491478,83.637,83.613,11.9598627]
[1773030672494,3.16491478,83.637,83.612,3.19520201]
[1773030673513,3.16491478,83.637,83.607,11.96071736]
[1773030673711,3.16491478,83.637,83.61,4.39299329]
[1773030673915,3.16491478,83.637,83.604,3.19520201]
[1773030674213,11.95657372,83.636,83.605,11.96100711]
[1773030674518,3.16491478,83.635,83.605,11.96100711]
[1773030674997,3.16491478,83.635,83.604,3.19520201]
[1773030675317,3.16491478,83.629,83.6,4.39299329]
[1773030675714,3.16491478,83.629,83.6,7.5881953]
[1773030675910,3.16491478,83.629,83.601,3.19520201]
[1773030676311,3.16491478,83.627,83.593,3.19520201]
[1773030677296,3.16491478,83.649,83.616,3.19520201]
[1773030677701,3.16491478,83.639,83.616,3.19520201]
[1773030677898,3.16491478,83.639,83.601,3.19520201]
[1773030678210,3.16491478,83.609,83.581,3.19520201]
[1773030678514,3.16491478,83.609,83.583,3.19520201]
[1773030678721,3.16491478,83.607,83.583,3.19520201]
[1773030681013,3.16491478,83.605,83.583,3.19520201]
[1773030681208,3.16491478,83.605,83.57,4.59299329]
[1773030681416,11.96086405,83.606,83.57,4.59299329]
[1773030681417,3.16491478,83.599,83.571,11.96587332]
[1773030681725,3.16491478,83.589,83.57,0.2]
[1773030682930,3.16491478,83.589,83.57,12.1659423]
[1773030683427,3.16491478,83.589,83.57,0.2]
[1773030684833,3.16491478,83.587,83.57,0.2]
[1773030685710,3.16491478,83.579,83.56,0.2]
[1773030687731,3.16491478,83.579,83.56,3.39520201]
[1773030688225,15.12919184,83.583,83.56,3.39520201]
[1773030688418,3.16491478,83.582,83.56,3.39520201]
[1773030688619,3.16491478,83.582,83.561,11.96730532]
[1773030689832,3.16491478,83.582,83.561,15.16250733]
[1773030691834,3.16491478,83.595,83.564,3.19520201]
[1773030692333,3.16491478,83.589,83.564,3.19520201]
[1773030693330,3.16491478,83.589,83.56,0.2]
[1773030693727,3.30979423,83.587,83.56,3.43845859]
[1773030694631,4.39299329,83.59,83.562,3.23845859]
[1773030694836,4.39299329,83.59,83.561,11.96730532]
[1773030694837,7.70278752,83.61,83.571,3.23845859]
[1773030695221,7.70278752,83.61,83.581,3.23845859]
[1773030695417,3.30979423,83.609,83.581,3.23845859]
[1773030695821,3.30979423,83.618,83.591,3.23845859]
[1773030696022,29.89429377,83.628,83.591,3.23845859]
[1773030696023,11.95836978,83.624,83.591,3.23845859]
[1773030696516,3.30979423,83.623,83.591,3.23845859]
[1773030697725,11.95699357,83.634,83.603,3.23845859]
[1773030697926,11.95699357,83.634,83.602,11.96143632]
[1773030697927,11.95699357,83.634,83.611,3.23845859]
[1773030698337,3.30979423,83.633,83.598,3.23845859]
[1773030698636,3.30979423,83.619,83.598,3.23845859]
[1773030699017,4.39299329,83.63,83.601,3.23845859]
[1773030699226,3.30979423,83.629,83.601,3.23845859]
[1773030699734,3.30979423,83.619,83.581,3.23845859]
[1773030699913,4.39299329,83.64,83.581,3.23845859]
[1773030699914,3.30979423,83.645,83.611,3.23845859]
[1773030700333,3.30979423,83.629,83.601,3.23845859]
[1773030700747,3.30979423,83.638,83.601,3.23845859]
[1773030700926,4.39299329,83.64,83.601,3.23845859]
[1773030701322,3.30979423,83.639,83.601,3.23845859]
[1773030702147,3.30979423,83.637,83.603,3.23845859]
[1773030702819,3.30979423,83.637,83.611,3.23845859]
[1773030703538,15.26535549,83.644,83.611,3.23845859]
[1773030703732,11.95556126,83.644,83.611,3.23845859]
[1773030704342,4.39299329,83.65,83.61,4.39299329]
[1773030704343,11.95473335,83.649,83.613,3.23845859]
[1773030704640,3.30979423,83.648,83.613,3.23845859]
[1773030704841,3.30979423,83.648,83.607,11.96058811]
[1773030705030,41.84152219,83.649,83.592,0.14216157]
[1773030705031,4.39299329,83.64,83.611,3.23845859]
[1773030705235,3.30979423,83.643,83.611,3.23845859]
[1773030705540,4.39299329,83.64,83.611,3.23845859]
[1773030705745,3.30979423,83.629,83.604,3.23845859]
[1773030706632,3.30979423,83.627,83.604,3.23845859]
[1773030707235,11.95771751,83.628,83.58,4.39299329]
[1773030707236,3.30979423,83.619,83.58,4.39299329]
[1773030708643,3.30979423,83.617,83.581,11.96444167]
[1773030709245,3.30979423,83.622,83.591,3.23845859]
[1773030710248,3.30979423,83.609,83.576,3.23845859]
[1773030710542,3.30979423,83.609,83.57,4.39580789]
[1773030710742,3.30979423,83.599,83.561,11.96730532]
[1773030710949,3.30979423,83.589,83.561,11.96730532]
[1773030711149,3.30979423,83.597,83.571,3.23845859]
[1773030712354,3.30979423,83.597,83.562,3.23845859]
[1773030712729,3.30979423,83.595,83.564,3.23845859]
[1773030713131,4.39580789,83.6,83.571,3.23845859]
[1773030713434,3.30979423,83.599,83.571,3.23845859]
[1773030714133,3.30979423,83.599,83.564,3.23845859]
[1773030716059,3.30979423,83.597,83.566,3.23845859]
[1773030719738,3.30979423,83.597,83.57,7.63426648]
[1773030719938,11.96146708,83.602,83.571,3.23845859]
[1773030720145,3.30979423,83.601,83.571,3.23845859]
[1773030720841,3.30979423,83.609,83.571,3.23845859]
[1773030721155,3.30979423,83.619,83.591,3.23845859]
[1773030721354,15.26879876,83.619,83.584,3.23845859]
[1773030721554,3.30979423,83.618,83.584,3.23845859]
[1773030721748,3.30979423,83.616,83.584,15.20245756]
[1773030723361,3.30979423,83.616,83.585,3.40934856]
[1773030723662,11.95929057,83.617,83.591,3.40934856]
[1773030723962,3.35407378,83.616,83.585,3.40934856]
[1773030724355,3.35407378,83.609,83.588,11.96340299]
[1773030726073,3.35407378,83.607,83.57,4.39580789]
[1773030726242,3.35407378,83.599,83.569,11.9661187]
[1773030726443,3.35407378,83.599,83.57,7.80515645]
[1773030726664,4.39580789,83.61,83.581,3.40934856]
[1773030726870,3.35407378,83.613,83.581,3.40934856]
[1773030727164,4.39580789,83.61,83.581,3.40934856]
[1773030727350,7.74988167,83.61,83.581,3.40934856]
[1773030727551,3.35407378,83.609,83.581,3.40934856]
[1773030728169,3.18187284,83.599,83.577,11.96498781]
[1773030728674,3.18187284,83.599,83.578,3.09996086]
[1773030729666,3.18187284,83.599,83.577,11.96498781]
[1773030730242,15.1438815,83.598,83.571,15.06571701]
[1773030730446,3.18187284,83.597,83.571,15.06571701]
[1773030730869,3.18187284,83.597,83.572,3.09996086]
[1773030732249,3.18187284,83.597,83.567,3.09996086]
[1773030732456,3.18187284,83.595,83.567,3.09996086]
[1773030733349,3.18187284,83.595,83.566,11.96658928]
[1773030733759,3.18187284,83.601,83.571,3.09996086]
[1773030734069,3.18187284,83.608,83.571,3.09996086]
[1773030734564,3.18187284,83.608,83.57,4.39580789]
[1773030734565,3.18187284,83.608,83.573,3.09996086]
[1773030734749,11.96072099,83.607,83.573,3.09996086]
[1773030734945,3.18187284,83.599,83.573,3.09996086]
[1773030735570,3.18187284,83.599,83.572,11.96573014]
[1773030735866,3.18187284,83.579,83.56,0.2]
[1773030737161,3.18187284,83.577,83.56,0.2]
[1773030741173,3.18187284,83.575,83.56,0.2]
[1773030742862,3.18187284,83.588,83.562,3.09996086]
[1773030743057,3.18187284,83.588,83.563,11.96701889]
[1773030743255,3.18187284,83.588,83.564,3.09996086]
[1773030743770,11.96358285,83.587,83.564,3.09996086]
[1773030743974,3.18187284,83.586,83.564,3.09996086]
[1773030744471,3.18187284,83.595,83.564,3.09996086]
[1773030745773,3.18187284,83.595,83.565,11.96673248]
[1773030745969,3.18187284,83.595,83.566,3.09996086]
[1773030747861,3.18187284,83.595,83.567,11.96644608]
[1773030748174,3.18187284,83.613,83.581,3.09996086]
[1773030748674,3.18187284,83.62,83.591,3.09996086]
[1773030748877,11.95842806,83.624,83.591,3.09996086]
[1773030749083,3.18187284,83.623,83.591,3.09996086]
[1773030750180,3.18187284,83.623,83.593,3.09996086]
[1773030750485,7.57768073,83.63,83.593,3.09996086]
[1773030750687,3.18187284,83.629,83.593,3.09996086]
[1773030752367,3.18187284,83.627,83.601,3.09996086]
[1773030753269,11.95771751,83.628,83.601,3.09996086]
[1773030753584,4.39580789,83.63,83.601,3.17850989]
[1773030753884,3.36259966,83.629,83.601,3.17850989]
[1773030755289,3.36259966,83.627,83.597,11.96203711]
[1773030756584,3.36259966,83.619,83.597,11.96203711]
[1773030757389,15.32060315,83.626,83.598,3.17850989]
[1773030757887,3.36259966,83.625,83.601,3.17850989]
[1773030759471,3.36259966,83.633,83.603,3.17850989]
[1773030759694,3.36259966,83.633,83.611,3.17850989]
[1773030760889,3.36259966,83.633,83.61,4.39580789]
[1773030760890,3.36259966,83.647,83.613,3.17850989]
[1773030761076,3.36259966,83.646,83.613,3.17850989]
[1773030762374,3.36259966,83.639,83.613,3.17850989]
[1773030763989,3.36259966,83.637,83.613,3.17850989]
[1773030764975,11.95566558,83.643,83.621,3.17850989]
[1773030765578,3.36259966,83.644,83.621,3.17850989]
[1773030765981,3.36259966,83.644,83.622,11.95857549]
[1773030766698,3.36259966,83.672,83.631,3.17850989]
[1773030766876,3.36259966,83.672,83.641,3.17850989]
[1773030767492,3.36259966,83.672,83.65,4.39580789]
[1773030768282,3.36259966,83.669,83.64,4.39580789]
[1773030768482,3.36259966,83.669,83.633,11.95686038]
[1773030768892,3.36259966,83.669,83.633,15.13537027]
[1773030769093,3.36259966,83.669,83.634,3.17850989]
[1773030769395,3.36259966,83.669,83.64,4.39580789]
[1773030769599,3.36259966,83.669,83.64,4.39073889]
[1773030770381,3.36259966,83.673,83.641,3.17850989]
[1773030770596,3.36259966,83.673,83.622,0.14216157]
[1773030770597,4.39073889,83.67,83.622,29.89640706]
[1773030770803,4.39073889,83.67,83.631,3.17850989]
[1773030770804,3.36259966,83.669,83.631,3.17850989]
[1773030771699,3.36259966,83.659,83.631,3.17850989]
[1773030772087,3.36259966,83.659,83.63,4.39073889]
[1773030773300,3.36259966,83.657,83.631,11.95728856]
[1773030774300,3.36259966,83.649,83.614,3.17850989]
[1773030774505,3.36259966,83.639,83.601,3.32067146]
[1773030774804,11.95342943,83.658,83.6,4.39073889]
[1773030774805,3.36259966,83.629,83.6,4.39073889]
[1773030775205,3.36259966,83.619,83.583,3.17850989]
[1773030775397,3.36259966,83.617,83.584,11.96401225]
[1773030775731,3.36259966,83.617,83.584,15.14252214]
[1773030776203,3.36259966,83.609,83.584,11.96401225]
[1773030778190,3.36259966,83.607,83.57,4.39073889]
[1773030778397,3.36259966,83.599,83.563,15.14552878]
[1773030778601,3.36259966,83.599,83.564,3.17850989]
[1773030780206,11.96200866,83.598,83.565,11.96673248]
[1773030780394,3.36259966,83.597,83.565,15.14524237]
[1773030781104,3.36259966,83.597,83.561,3.17850989]
[1773030781811,3.36259966,83.597,83.562,3.17850989]
[1773030783200,3.12276619,83.595,83.563,11.96701889]
[1773030783514,3.12276619,83.595,83.564,3.29341187]
[1773030784114,3.12276619,83.589,83.563,11.96701889]
[1773030789216,3.12276619,83.589,83.564,3.14952904]
[1773030791521,3.2256332,83.587,83.56,4.59073889]
[1773030793030,3.2256332,83.585,83.56,7.74026793]
[1773030793212,3.2256332,83.585,83.561,15.11683436]
[1773030794422,15.18964545,83.584,83.562,3.14952904]
[1773030794628,3.2256332,83.583,83.56,4.59073889]
[1773030794829,3.2256332,83.583,83.56,0.2]
[1773030795210,11.96401225,83.584,83.56,0.2]
[1773030795211,3.2256332,83.579,83.56,0.2]
[1773030795830,3.2256332,83.579,83.55,0.2]
[1773030796416,4.39073889,83.57,83.55,0.2]
[1773030796732,3.2256332,83.568,83.55,0.2]
[1773030799034,3.2256332,83.566,83.55,0.2]
[1773030799533,29.91014226,83.584,83.551,3.14952904]
[1773030799732,4.39073889,83.59,83.561,3.14952904]
[1773030800238,4.39073889,83.6,83.571,3.14952904]
[1773030801614,3.2256332,83.597,83.571,3.14952904]
[1773030802717,3.2256332,83.589,83.564,3.14952904]
[1773030803260,3.2256332,83.589,83.56,4.39073889]
[1773030803537,3.2256332,83.589,83.56,3.14952904]
[1773030804119,3.2256332,83.587,83.56,3.14952904]
[1773030804537,3.2256332,83.587,83.561,3.14952904]
[1773030806325,11.96372598,83.586,83.561,3.14952904]
[1773030806536,3.2256332,83.585,83.561,3.14952904]
[1773030806925,3.2256332,83.585,83.557,15.11737561]
[1773030807120,3.2256332,83.579,83.557,11.96784657]
[1773030807339,3.2256332,83.579,83.558,3.14952904]
[1773030807726,11.96487113,83.578,83.558,3.14952904]
[1773030807944,3.2256332,83.577,83.558,3.14952904]
[1773030808719,3.2256332,83.577,83.559,11.96759176]
[1773030808925,3.2256332,83.577,83.55,0.2]
[1773030809748,3.2256332,83.575,83.55,0.2]
[1773030809946,3.2256332,83.575,83.551,3.14952904]
[1773030812128,3.2256332,83.573,83.551,3.14952904]
[1773030813330,11.96573014,83.572,83.551,3.14952904]
[1773030813729,3.12048351,83.571,83.551,3.14952904]
[1773030814735,3.12048351,83.569,83.551,3.14952904]
[1773030815351,11.96630289,83.568,83.551,3.14952904]
[1773030815554,3.12048351,83.567,83.551,3.14952904]
[1773030815940,3.12048351,83.567,83.55,0.2]
[1773030816647,15.08626531,83.572,83.551,3.28587348]
[1773030816857,133.9749619,83.833,83.56,4.39073889]
[1773030816858,3.12048351,83.605,83.56,4.39073889]
[1773030817036,3.12048351,83.605,83.571,3.28587348]
[1773030817758,3.12048351,83.603,83.573,3.28587348]
[1773030818262,3.12048351,83.599,83.573,3.28587348]
[1773030819263,11.96115018,83.604,83.581,3.28587348]